fUST/lending_fUST_20240719
["ID","MTS","AMOUNT","RATE_DAILY","PERIOD"]
[332605150,1721341847634,-500.0,0.00021917,2]
[332605151,1721341847644,-500.0,0.00021917,2]
[332605152,1721341847654,-500.0,0.00021917,2]
[332605153,1721341847664,-280.12283745,0.00021917,2]
[332605154,1721341847674,-500.0,0.00021917,2]
[332605155,1721341847683,-500.0,0.00021917,2]
[332605156,1721341847693,-529.9337123,0.00021917,2]
[332605157,1721341847703,-500.0,0.00021917,2]
[332605158,1721341847715,-500.0,0.00021917,2]
[332605159,1721341847726,-500.0,0.00021917,2]
[332605160,1721341847737,-500.0,0.00021917,2]
[332605161,1721341847747,-500.0,0.00021917,2]
[332605162,1721341847757,-500.0,0.00021917,2]
[332605163,1721341847766,-500.0,0.00021917,2]
[332605164,1721341847777,-500.0,0.00021917,2]
[332605165,1721341847788,-508.32165735,0.00021917,2]
[332605166,1721341847797,-500.0,0.00021917,2]
[332605167,1721341847807,-493.73310187,0.00021917,2]
[332605168,1721341847817,-500.0,0.00021917,2]
[332605169,1721341847828,-500.0,0.00021917,2]
[332605170,1721341847837,-520.29445773,0.00021917,2]
[332605171,1721341847847,-500.0,0.00021917,2]
[332605172,1721341847857,-500.0,0.00021917,2]
[332605173,1721341847866,-500.0,0.00021917,2]
[332605174,1721341847876,-500.0,0.00021917,2]
[332605175,1721341847885,-500.0,0.00021917,2]
[332605176,1721341847894,-500.0,0.00021917,2]
[332605177,1721341847904,-500.0,0.00021917,2]
[332605178,1721341847914,-519.27342515,0.00021917,2]
[332605179,1721341847923,-500.0,0.00021917,2]
[332605180,1721341847933,-500.0,0.00021917,2]
[332605181,1721341847943,-500.0,0.00021917,2]
[332605182,1721341847952,-507.6813404,0.00021917,2]
[332605183,1721341847961,-500.0,0.00021917,2]
[332605184,1721341847971,-500.0,0.00021917,2]
[332605185,1721341847981,-500.0,0.00021917,2]
[332605186,1721341847991,-508.22486119,0.00021917,2]
[332605187,1721341848000,-306.47600633,0.00021917,2]
[332605188,1721341848010,-500.0,0.00021917,2]
[332605189,1721341848019,-500.0,0.00021917,2]
[332605190,1721341848030,-623.28,0.00021917,2]
[332605191,1721341848041,-500.0,0.00021917,2]
[332605192,1721341848050,-500.0,0.00021917,2]
[332605193,1721341848060,-500.0,0.00021917,2]
[332605194,1721341848070,-508.7504317,0.00021917,2]
[332605195,1721341848080,-500.0,0.00021917,2]
[332605196,1721341848090,-500.0,0.00021917,2]
[332605197,1721341848100,-500.0,0.00021917,2]
[332605198,1721341848110,-500.0,0.00021917,2]
[332605199,1721341848120,-500.0,0.00021917,2]
[332605200,1721341848129,-500.0,0.00021917,2]
[332605201,1721341848139,-500.0,0.00021917,2]
[332605202,1721341848149,-500.0,0.00021917,2]
[332605203,1721341848159,-500.0,0.00021917,2]
[332605204,1721341848169,-500.0,0.00021917,2]
[332605205,1721341848180,-500.0,0.00021917,2]
[332605206,1721341848189,-511.97198932,0.00021917,2]
[332605207,1721341848199,-500.0,0.00021917,2]
[332605208,1721341848208,-500.0,0.00021917,2]
[332605209,1721341848218,-500.0,0.00021917,2]
[332605210,1721341848228,-500.0,0.00021917,2]
[332605211,1721341848238,-505.11244651,0.00021917,2]
[332605212,1721341848248,-510.73615363,0.00021917,2]
[332605213,1721341848257,-612.80054284,0.00021917,2]
[332605214,1721341848267,-500.0,0.00021917,2]
[332605215,1721341848277,-449.28067694,0.00021917,2]
[332605216,1721341848289,-500.0,0.00021917,2]
[332605217,1721341848300,-500.0,0.00021917,2]
[332605218,1721341848309,-500.0,0.00021917,2]
[332605219,1721341848324,-500.0,0.00021917,2]
[332605220,1721341848334,-500.0,0.00021917,2]
[332605221,1721341848345,-500.0,0.00021917,2]
[332605222,1721341848354,-500.0,0.00021917,2]
[332605223,1721341848366,-500.0,0.00021917,2]
[332605224,1721341848376,-500.0,0.00021917,2]
[332605225,1721341848386,-500.0,0.00021917,2]
[332605226,1721341848400,-500.0,0.00021917,2]
[332605227,1721341848412,-427.23309789,0.00021917,2]
[332605228,1721341848422,-500.0,0.00021917,2]
[332605229,1721341848431,-504.00606277,0.00021917,2]
[332605230,1721341848441,-500.0,0.00021917,2]
[332605231,1721341848451,-500.0,0.00021917,2]
[332605232,1721341848461,-502.69318427,0.00021917,2]
[332605233,1721341848472,-510.75854143,0.00021917,2]
[332605234,1721341848483,-500.0,0.00021917,2]
[332605235,1721341848494,-525.87312831,0.00021917,2]
[332605236,1721341848505,-449.25540035,0.00021917,2]
[332605237,1721341848516,-500.0,0.00021917,2]
[332605238,1721341848526,-500.0,0.00021917,2]
[332605239,1721341848535,-500.0,0.00021917,2]
[332605240,1721341848546,-500.0,0.00021917,2]
[332605241,1721341848557,-500.0,0.00021917,2]
[332605242,1721341848567,-500.0,0.00021917,2]
[332605243,1721341848577,-500.0,0.00021917,2]
[332605244,1721341848586,-500.0,0.00021917,2]
[332605245,1721341848596,-500.0,0.00021917,2]
[332605246,1721341848606,-500.0,0.00021917,2]
[332605247,1721341848617,-500.0,0.00021917,2]
[332605248,1721341848627,-500.0,0.00021917,2]
[332605249,1721341848638,-500.0,0.00021917,2]
[332605250,1721341848648,-500.0,0.00021917,2]
[332605251,1721341848658,-500.0,0.00021917,2]
[332605252,1721341848668,-500.0,0.00021917,2]
[332605253,1721341848677,-500.0,0.00021917,2]
[332605254,1721341848687,-500.0,0.00021917,2]
[332605255,1721341848698,-500.0,0.00021917,2]
[332605256,1721341848708,-500.0,0.00021917,2]
[332605257,1721341848719,-500.0,0.00021917,2]
[332605258,1721341848730,-500.0,0.00021917,2]
[332605259,1721341848740,-500.0,0.00021917,2]
[332605260,1721341848749,-500.0,0.00021917,2]
[332605261,1721341848759,-500.0,0.00021917,2]
[332605262,1721341848769,-500.0,0.00021917,2]
[332605263,1721341848780,-500.0,0.00021917,2]
[332605264,1721341848791,-500.0,0.00021917,2]
[332605265,1721341848802,-500.0,0.00021917,2]
[332605266,1721341848813,-500.0,0.00021917,2]
[332605267,1721341848823,-500.0,0.00021917,2]
[332605268,1721341848833,-500.0,0.00021917,2]
[332605269,1721341848844,-500.0,0.00021917,2]
[332605270,1721341848855,-611.48,0.00021917,2]
[332605271,1721341848867,-535.04,0.00021917,2]
[332605272,1721341848876,-500.0,0.00021917,2]
[332605273,1721341848887,-500.0,0.00021917,2]
[332605274,1721341848898,-500.0,0.00021917,2]
[332605275,1721341848907,-500.0,0.00021917,2]
[332605276,1721341848918,-500.0,0.00021917,2]
[332605277,1721341848928,-500.0,0.00021917,2]
[332605278,1721341848939,-803.3,0.00021917,2]
[332605279,1721341848951,-909.74,0.00021917,2]
[332605280,1721341848963,-500.0,0.00021917,2]
[332605281,1721341848974,-626.43,0.00021917,2]
[332605282,1721341848985,-500.0,0.00021917,2]
[332605283,1721341848996,-536.65,0.00021917,2]
[332605284,1721341849006,-653.02,0.00021917,2]
[332605285,1721341849018,-500.0,0.00021917,2]
[332605286,1721341849029,-870.01,0.00021917,2]
[332605287,1721341849042,-569.49,0.00021917,2]
[332605288,1721341849053,-677.81,0.00021917,2]
[332605289,1721341849064,-612.25809617,0.00021917,2]
[332605290,1721341849075,-500.0,0.00021917,2]
[332605291,1721341849085,-500.0,0.00021917,2]
[332605292,1721341849097,-930.75,0.00021917,2]
[332605293,1721341849107,-500.0,0.00021917,2]
[332605294,1721341849117,-500.0,0.00021917,2]
[332605295,1721341849129,-1483.08,0.00021917,2]
[332605296,1721341849139,-500.0,0.00021917,2]
[332605297,1721341849149,-664.15,0.00021917,2]
[332605298,1721341849159,-500.0,0.00021917,2]
[332605299,1721341849170,-500.0,0.00021917,2]
[332605300,1721341849181,-891.73,0.00021917,2]
[332605301,1721341849192,-500.0,0.00021917,2]
[332605302,1721341849203,-500.0,0.00021917,2]
[332605303,1721341849212,-500.0,0.00021917,2]
[332605304,1721341849223,-1243.93,0.00021917,2]
[332605305,1721341849234,-500.0,0.00021917,2]
[332605306,1721341849244,-500.0,0.00021917,2]
[332605307,1721341849254,-1883.8,0.00021917,2]
[332605308,1721341849265,-1285.94,0.00021917,2]
[332605309,1721341849275,-699.0,0.00021917,2]
[332605310,1721341849285,-569.6,0.00021917,2]
[332605311,1721341849296,-682.31,0.00021917,2]
[332605312,1721341849306,-500.0,0.00021917,2]
[332605313,1721341849317,-615.06,0.00021917,2]
[332605314,1721341849329,-653.61,0.00021917,2]
[332605315,1721341849340,-714.61,0.00021917,2]
[332605316,1721341849350,-1873.93,0.00021917,2]
[332605317,1721341849361,-822.28,0.00021917,2]
[332605318,1721341849375,-829.45,0.00021917,2]
[332605319,1721341849386,-500.0,0.00021917,2]
[332605320,1721341849396,-617.95,0.00021917,2]
[332605321,1721341849407,-500.0,0.00021917,2]
[332605322,1721341849416,-927.82,0.00021917,2]
[332605323,1721341849427,-609.0,0.00021917,2]
[332605324,1721341849437,-500.0,0.00021917,2]
[332605325,1721341849447,-500.0,0.00021917,2]
[332605326,1721341849458,-1863.3,0.00021917,2]
[332605327,1721341849468,-500.0,0.00021917,2]
[332605328,1721341849479,-1334.43,0.00021917,2]
[332605329,1721341849489,-500.0,0.00021917,2]
[332605330,1721341849499,-500.0,0.00021917,2]
[332605331,1721341849510,-1677.09,0.00021917,2]
[332605332,1721341849520,-500.0,0.00021917,2]
[332605333,1721341849531,-1445.07,0.00021917,2]
[332605334,1721341849543,-500.0,0.00021917,2]
[332605335,1721341849553,-500.0,0.00021917,2]
[332605336,1721341849563,-500.0,0.00021917,2]
[332605337,1721341849574,-604.68988746,0.00021917,2]
[332605338,1721341849584,-500.0,0.00021917,2]
[332605339,1721341849595,-2433.27,0.00021917,2]
[332605340,1721341849607,-609.85790047,0.00021917,2]
[332605341,1721341849617,-500.0,0.00021917,2]
[332605342,1721341849627,-500.0,0.00021917,2]
[332605343,1721341849638,-934.19,0.00021917,2]
[332605344,1721341849649,-941.58,0.00021917,2]
[332605345,1721341849659,-695.86,0.00021917,2]
[332605346,1721341849669,-802.8,0.00021917,2]
[332605347,1721341849680,-1156.27,0.00021917,2]
[332605348,1721341849690,-500.0,0.00021917,2]
[332605349,1721341849700,-1166.46,0.00021917,2]
[332605350,1721341849710,-500.0,0.00021917,2]
[332605351,1721341849722,-1109.98,0.00021917,2]
[332605352,1721341849733,-627.00265028,0.00021917,2]
[332605353,1721341849744,-500.0,0.00021917,2]
[332605354,1721341849755,-1042.12,0.00021917,2]
[332605355,1721341849767,-1028.5,0.00021917,2]
[332605356,1721341849777,-2261.37,0.00021917,2]
[332605357,1721341849787,-1862.21,0.00021917,2]
[332605358,1721341849799,-500.0,0.00021917,2]
[332605359,1721341849811,-500.0,0.00021917,2]
[332605360,1721341849822,-758.64,0.00021917,2]
[332605361,1721341849833,-500.0,0.00021917,2]
[332605362,1721341849846,-500.0,0.00021917,2]
[332605363,1721341849857,-506.93,0.00021917,2]
[332605364,1721341849868,-786.5,0.00021917,2]
[332605365,1721341849878,-500.0,0.00021917,2]
[332605366,1721341849889,-923.65,0.00021917,2]
[332605367,1721341849899,-500.0,0.00021917,2]
[332605368,1721341849909,-500.0,0.00021917,2]
[332605369,1721341849922,-2198.64,0.00021917,2]
[332605370,1721341849934,-1404.14,0.00021917,2]
[332605371,1721341849945,-500.0,0.00021917,2]
[332605372,1721341849954,-647.33821386,0.00021917,2]
[332605373,1721341849967,-500.0,0.00021917,2]
[332605374,1721341849977,-1257.15,0.00021917,2]
[332605375,1721341849988,-861.03,0.00021917,2]
[332605376,1721341849999,-500.0,0.00021917,2]
[332605377,1721341850010,-500.0,0.00021917,2]
[332605378,1721341850020,-661.14,0.00021917,2]
[332605379,1721341850031,-500.0,0.00021917,2]
[332605380,1721341850043,-1099.66,0.00021917,2]
[332605381,1721341850055,-500.0,0.00021917,2]
[332605382,1721341850066,-500.0,0.00021917,2]
[332605383,1721341850077,-500.0,0.00021917,2]
[332605384,1721341850087,-500.0,0.00021917,2]
[332605385,1721341850099,-500.0,0.00021917,2]
[332605386,1721341850109,-630.37202126,0.00021917,2]
[332605387,1721341850120,-500.0,0.00021917,2]
[332605388,1721341850131,-809.79,0.00021917,2]
[332605389,1721341850142,-500.0,0.00021917,2]
[332605390,1721341850151,-738.17,0.00021917,2]
[332605391,1721341850161,-2053.66,0.00021917,2]
[332605392,1721341850171,-500.0,0.00021917,2]
[332605393,1721341850181,-500.0,0.00021917,2]
[332605394,1721341850191,-500.0,0.00021917,2]
[332605395,1721341850203,-500.0,0.00021917,2]
[332605396,1721341850212,-500.0,0.00021917,2]
[332605397,1721341850222,-645.0398114,0.00021917,2]
[332605398,1721341850234,-858.53,0.00021917,2]
[332605399,1721341850244,-500.0,0.00021917,2]
[332605400,1721341850255,-500.0,0.00021917,2]
[332605401,1721341850267,-594.32,0.00021917,2]
[332605402,1721341850278,-500.0,0.00021917,2]
[332605403,1721341850289,-500.0,0.00021917,2]
[332605404,1721341850300,-2301.06,0.00021917,2]
[332605405,1721341850313,-1017.84,0.00021917,2]
[332605406,1721341850327,-1081.15,0.00021917,2]
[332605407,1721341850340,-1076.4,0.00021917,2]
[332605408,1721341850352,-1373.6,0.00021917,2]
[332605409,1721341850363,-1031.55,0.00021917,2]
[332605410,1721341850375,-2107.03,0.00021917,2]
[332605411,1721341850387,-686.8,0.00021917,2]
[332605412,1721341850397,-500.0,0.00021917,2]
[332605413,1721341850409,-617.50338223,0.00021917,2]
[332605414,1721341850419,-500.0,0.00021917,2]
[332605415,1721341850428,-500.0,0.00021917,2]
[332605416,1721341850438,-687.29,0.00021917,2]
[332605417,1721341850448,-500.0,0.00021917,2]
[332605418,1721341850460,-819.04,0.00021917,2]
[332605419,1721341850470,-500.0,0.00021917,2]
[332605420,1721341850481,-500.0,0.00021917,2]
[332605421,1721341850491,-500.0,0.00021917,2]
[332605422,1721341850502,-500.0,0.00021917,2]
[332605423,1721341850513,-629.58199223,0.00021917,2]
[332605424,1721341850525,-500.0,0.00021917,2]
[332605425,1721341850537,-618.15881872,0.00021917,2]
[332605426,1721341850547,-500.0,0.00021917,2]
[332605427,1721341850556,-500.0,0.00021917,2]
[332605428,1721341850567,-500.0,0.00021917,2]
[332605429,1721341850578,-610.73089826,0.00021917,2]
[332605430,1721341850588,-500.0,0.00021917,2]
[332605431,1721341850598,-515.47,0.00021917,2]
[332605432,1721341850608,-584.45,0.00021917,2]
[332605433,1721341850618,-500.0,0.00021917,2]
[332605434,1721341850630,-500.0,0.00021917,2]
[332605435,1721341850640,-500.0,0.00021917,2]
[332605436,1721341850651,-500.0,0.00021917,2]
[332605437,1721341850661,-622.16,0.00021917,2]
[332605438,1721341850671,-500.0,0.00021917,2]
[332605439,1721341850682,-500.0,0.00021917,2]
[332605440,1721341850693,-500.0,0.00021917,2]
[332605441,1721341850704,-500.0,0.00021917,2]
[332605442,1721341850716,-500.0,0.00021917,2]
[332605443,1721341850727,-701.68,0.00021917,2]
[332605444,1721341850737,-628.57,0.00021917,2]
[332605445,1721341850748,-500.0,0.00021917,2]
[332605446,1721341850758,-500.0,0.00021917,2]
[332605447,1721341850767,-1046.63,0.00021917,2]
[332605448,1721341850777,-789.9,0.00021917,2]
[332605449,1721341850789,-500.0,0.00021917,2]
[332605450,1721341850800,-500.0,0.00021917,2]
[332605451,1721341850810,-1721.42,0.00021917,2]
[332605452,1721341850819,-500.0,0.00021917,2]
[332605453,1721341850828,-500.0,0.00021917,2]
[332605454,1721341850840,-500.0,0.00021917,2]
[332605455,1721341850852,-500.0,0.00021917,2]
[332605456,1721341850861,-297.31,0.00021917,2]
[332605457,1721341850871,-870.01,0.00021917,2]
[332605458,1721341850881,-500.0,0.00021917,2]
[332605459,1721341850890,-500.0,0.00021917,2]
[332605460,1721341850900,-1063.37,0.00021917,2]
[332605461,1721341850911,-633.35989261,0.00021917,2]
[332605462,1721341850921,-500.0,0.00021917,2]
[332605463,1721341850931,-683.64,0.00021917,2]
[332605464,1721341850941,-500.0,0.00021917,2]
[332605465,1721341850950,-500.0,0.00021917,2]
[332605466,1721341850960,-500.0,0.00021917,2]
[332605467,1721341850970,-500.0,0.00021917,2]
[332605468,1721341850980,-500.0,0.00021917,2]
[332605469,1721341850989,-515.87197613,0.00021917,2]
[332605470,1721341851000,-560.1,0.00021917,2]
[332605471,1721341851009,-223.40288364,0.00021917,2]
[332605472,1721341851019,-500.0,0.00021917,2]
[332605473,1721341851029,-521.77382738,0.00021917,2]
[332605474,1721341851041,-189.70760529,0.00021917,2]
[332605475,1721341851050,-500.0,0.00021917,2]
[332605476,1721341851060,-222.99106709,0.00021917,2]
[332605477,1721341851070,-500.0,0.00021917,2]
[332605478,1721341851080,-500.0,0.00021917,2]
[332605479,1721341851090,-500.0,0.00021917,2]
[332605480,1721341851100,-500.0,0.00021917,2]
[332605481,1721341851110,-345.83,0.00021917,2]
[332605482,1721341851120,-197.01076395,0.00021917,2]
[332605483,1721341851129,-509.80991663,0.00021917,2]
[332605484,1721341851139,-500.0,0.00021917,2]
[332605485,1721341851149,-500.0,0.00021917,2]
[332605486,1721341851160,-535.39194579,0.00021917,2]
[332605487,1721341851169,-500.0,0.00021917,2]
[332605488,1721341851179,-500.0,0.00021917,2]
[332605489,1721341851190,-509.66054696,0.00021917,2]
[332605490,1721341851200,-500.0,0.00021917,2]
[332605491,1721341851209,-500.0,0.00021917,2]
[332605492,1721341851355,-500.0,0.00021917,2]
[332605493,1721341851384,-854.63,0.00021917,2]
[332605494,1721341851397,-500.0,0.00021917,2]
[332605495,1721341851409,-500.0,0.00021917,2]
[332605496,1721341851419,-500.0,0.00021917,2]
[332605497,1721341851430,-513.75540679,0.00021917,2]
[332605498,1721341851441,-500.0,0.00021917,2]
[332605499,1721341851452,-500.0,0.00021917,2]
[332605500,1721341851463,-500.0,0.00021917,2]
[332605501,1721341851475,-500.0,0.00021917,2]
[332605502,1721341851485,-512.66982957,0.00021917,2]
[332605503,1721341851494,-505.26173045,0.00021917,2]
[332605504,1721341851503,-500.0,0.00021917,2]
[332605505,1721341851513,-511.80096095,0.00021917,2]
[332605506,1721341851523,-473.38967444,0.00021917,2]
[332605507,1721341851532,-545.2236247,0.00021917,2]
[332605508,1721341851544,-169.95444653,0.00021917,2]
[332605509,1721341851554,-508.03266137,0.00021917,2]
[332605510,1721341851563,-500.0,0.00021917,2]
[332605511,1721341851573,-504.59237661,0.00021917,2]
[332605512,1721341851586,-500.0,0.00021917,2]
[332605513,1721341851595,-500.0,0.00021917,2]
[332605514,1721341851604,-500.0,0.00021917,2]
[332605515,1721341851613,-500.0,0.00021917,2]
[332605516,1721341851622,-504.61120666,0.00021917,2]
[332605517,1721341851632,-500.0,0.00021917,2]
[332605518,1721341851641,-521.69716309,0.00021917,2]
[332605519,1721341851651,-500.0,0.00021917,2]
[332605520,1721341851660,-500.0,0.00021917,2]
[332605521,1721341851669,-276.3927466,0.00021917,2]
[332605522,1721341851678,-500.0,0.00021917,2]
[332605523,1721341851688,-500.0,0.00021917,2]
[332605524,1721341851699,-1330.18,0.00021917,2]
[332605525,1721341851710,-500.0,0.00021917,2]
[332605526,1721341851721,-500.0,0.00021917,2]
[332605527,1721341851730,-685.26,0.00021917,2]
[332605528,1721341851739,-503.56758103,0.00021917,2]
[332605529,1721341851749,-500.0,0.00021917,2]
[332605530,1721341851759,-507.54966602,0.00021917,2]
[332605531,1721341851769,-562.68953031,0.00021917,2]
[332605532,1721341851779,-470.44082281,0.00021917,2]
[332605533,1721341851791,-500.0,0.00021917,2]
[332605534,1721341851801,-500.0,0.00021917,2]
[332605535,1721341851811,-500.0,0.00021917,2]
[332605536,1721341851820,-500.0,0.00021917,2]
[332605537,1721341851830,-500.0,0.00021917,2]
[332605538,1721341851839,-507.91304751,0.00021917,2]
[332605539,1721341851849,-500.0,0.00021917,2]
[332605540,1721341851858,-500.0,0.00021917,2]
[332605541,1721341851868,-500.0,0.00021917,2]
[332605542,1721341851878,-500.0,0.00021917,2]
[332605543,1721341851888,-503.76980122,0.00021917,2]
[332605544,1721341851897,-500.0,0.00021917,2]
[332605545,1721341851907,-500.0,0.00021917,2]
[332605546,1721341851916,-505.56319924,0.00021917,2]
[332605547,1721341851926,-516.38473904,0.00021917,2]
[332605548,1721341851935,-500.0,0.00021917,2]
[332605549,1721341851945,-500.0,0.00021917,2]
[332605550,1721341851954,-500.0,0.00021917,2]
[332605551,1721341851964,-635.74472654,0.00021917,2]
[332605552,1721341851973,-500.0,0.00021917,2]
[332605553,1721341851982,-500.0,0.00021917,2]
[332605554,1721341851992,-500.0,0.00021917,2]
[332605555,1721341852001,-500.0,0.00021917,2]
[332605556,1721341852011,-500.0,0.00021917,2]
[332605557,1721341852020,-500.0,0.00021917,2]
[332605558,1721341852029,-500.0,0.00021917,2]
[332605559,1721341852041,-500.0,0.00021917,2]
[332605560,1721341852050,-500.0,0.00021917,2]
[332605561,1721341852059,-500.0,0.00021917,2]
[332605562,1721341852068,-190.54055537,0.00021917,2]
[332605563,1721341852079,-500.0,0.00021917,2]
[332605564,1721341852089,-500.0,0.00021917,2]
[332605565,1721341852099,-500.0,0.00021917,2]
[332605566,1721341852110,-500.0,0.00021917,2]
[332605567,1721341852121,-500.0,0.00021917,2]
[332605568,1721341852133,-500.0,0.00021917,2]
[332605569,1721341852143,-500.0,0.00021917,2]
[332605570,1721341852154,-500.0,0.00021917,2]
[332605571,1721341852164,-658.12,0.00021917,2]
[332605572,1721341852176,-544.72617333,0.00021917,2]
[332605573,1721341852187,-500.0,0.00021917,2]
[332605574,1721341852198,-500.0,0.00021917,2]
[332605575,1721341852208,-1363.88,0.00021917,2]
[332605576,1721341852218,-500.0,0.00021917,2]
[332605577,1721341852229,-500.0,0.00021917,2]
[332605578,1721341852239,-500.0,0.00021917,2]
[332605579,1721341852251,-500.0,0.00021917,2]
[332605580,1721341852263,-500.0,0.00021917,2]
[332605581,1721341852276,-349.1670993,0.00021917,2]
[332605582,1721341852288,-500.0,0.00021917,2]
[332605583,1721341852298,-500.0,0.00021917,2]
[332605584,1721341852309,-509.82568594,0.00021917,2]
[332605585,1721341852319,-516.65663321,0.00021917,2]
[332605586,1721341852328,-786.18,0.00021917,2]
[332605587,1721341852341,-500.0,0.00021917,2]
[332605588,1721341852350,-500.0,0.00021917,2]
[332605589,1721341852361,-504.49720481,0.00021917,2]
[332605590,1721341852370,-1356.98,0.00021917,2]
[332605591,1721341852379,-500.0,0.00021917,2]
[332605592,1721341852389,-834.43,0.00021917,2]
[332605593,1721341852399,-500.0,0.00021917,2]
[332605594,1721341852411,-436.0976372,0.00021917,2]
[332605595,1721341852420,-500.0,0.00021917,2]
[332605596,1721341852429,-500.0,0.00021917,2]
[332605597,1721341852439,-500.0,0.00021917,2]
[332605598,1721341852448,-500.0,0.00021917,2]
[332605599,1721341852458,-500.0,0.00021917,2]
[332605600,1721341852467,-500.0,0.00021917,2]
[332605601,1721341852477,-500.0,0.00021917,2]
[332605602,1721341852486,-500.0,0.00021917,2]
[332605603,1721341852495,-641.39706208,0.00021917,2]
[332605604,1721341852505,-500.0,0.00021917,2]
[332605605,1721341852516,-551.50224524,0.00021917,2]
[332605606,1721341852525,-500.0,0.00021917,2]
[332605607,1721341852537,-500.0,0.00021917,2]
[332605608,1721341852547,-500.0,0.00021917,2]
[332605609,1721341852556,-500.0,0.00021917,2]
[332605610,1721341852565,-500.0,0.00021917,2]
[332605611,1721341852575,-500.0,0.00021917,2]
[332605612,1721341852587,-500.0,0.00021917,2]
[332605613,1721341852597,-500.0,0.00021917,2]
[332605614,1721341852606,-500.0,0.00021917,2]
[332605615,1721341852616,-506.08824838,0.00021917,2]
[332605616,1721341852625,-500.0,0.00021917,2]
[332605617,1721341852635,-500.0,0.00021917,2]
[332605618,1721341852645,-500.0,0.00021917,2]
[332605619,1721341852654,-500.0,0.00021917,2]
[332605620,1721341852664,-500.0,0.00021917,2]
[332605621,1721341852673,-500.0,0.00021917,2]
[332605622,1721341852682,-500.0,0.00021917,2]
[332605623,1721341852692,-433.37075547,0.00021917,2]
[332605624,1721341852701,-500.0,0.00021917,2]
[332605625,1721341852710,-500.0,0.00021917,2]
[332605626,1721341852721,-500.0,0.00021917,2]
[332605627,1721341852732,-500.0,0.00021917,2]
[332605628,1721341852741,-500.0,0.00021917,2]
[332605629,1721341852751,-500.0,0.00021917,2]
[332605630,1721341852761,-510.76347615,0.00021917,2]
[332605631,1721341852771,-500.0,0.00021917,2]
[332605632,1721341852781,-446.45355739,0.00021917,2]
[332605633,1721341852792,-2189.2,0.00021917,2]
[332605634,1721341852803,-500.0,0.00021917,2]
[332605635,1721341852814,-500.0,0.00021917,2]
[332605636,1721341852824,-500.0,0.00021917,2]
[332605637,1721341852836,-500.0,0.00021917,2]
[332605638,1721341852847,-276.06,0.00021917,2]
[332605639,1721341852858,-511.58747215,0.00021917,2]
[332605640,1721341852869,-500.0,0.00021917,2]
[332605641,1721341852879,-500.0,0.00021917,2]
[332605642,1721341852890,-373.74386389,0.00021917,2]
[332605643,1721341852901,-500.0,0.00021917,2]
[332605644,1721341852913,-500.0,0.00021917,2]
[332605645,1721341852923,-500.0,0.00021917,2]
[332605646,1721341852932,-628.69109568,0.00021917,2]
[332605647,1721341852941,-500.0,0.00021917,2]
[332605648,1721341852950,-500.0,0.00021917,2]
[332605649,1721341852960,-523.87512682,0.00021917,2]